bitfinex/quotes_SOLUSD_20260213
["timestamp","ask_amount","ask_price","bid_price","bid_amount"]
[1771001427671,1.30648951,84.455,84.423,1.37870277]
[1771001428955,0.2,84.46,84.432,1.37870277]
[1771001429251,1.30648951,84.479,84.442,1.37870277]
[1771001429454,1.30648951,84.479,84.444,1.37870277]
[1771001429641,0.2,84.48,84.451,1.37870277]
[1771001429844,0.2,84.48,84.443,82.22807739]
[1771001429845,0.2,84.48,84.461,1.37870277]
[1771001430042,47.30204113,84.563,84.452,40.76]
[1771001430043,1.30648951,84.511,84.471,1.37870277]
[1771001430271,1.30648951,84.519,84.481,1.37870277]
[1771001430451,1.30648951,84.499,84.472,1.37870277]
[1771001430634,1.30648951,84.499,84.473,40.76]
[1771001430956,1.28222568,84.498,84.47,1.29859205]
[1771001431128,1.28222568,84.517,84.481,1.29859205]
[1771001431339,11.67699008,84.51,84.483,11.83670087]
[1771001431535,1.28222568,84.509,84.483,11.83670087]
[1771001431835,1.28222568,84.499,84.477,40.76]
[1771001432040,10.3947644,84.51,84.478,1.29859205]
[1771001432356,10.3947644,84.51,84.477,40.76]
[1771001432357,1.28222568,84.514,84.481,1.29859205]
[1771001432565,1.28222568,84.509,84.481,1.29859205]
[1771001432865,1.28222568,84.499,84.478,40.76]
[1771001433451,1.28222568,84.499,84.472,1.29859205]
[1771001433632,1.28222568,84.516,84.481,1.29859205]
[1771001433838,1.28222568,84.516,84.471,11.8383824]
[1771001433839,0.2,84.52,84.501,1.29859205]
[1771001434046,0.2,84.52,84.503,1.29859205]
[1771001434236,4.61729252,84.566,84.511,1.29859205]
[1771001434237,1.28222568,84.566,84.511,1.29859205]
[1771001434433,47.47042358,84.62,84.54,10.3947644]
[1771001434633,1.28222568,84.559,84.526,1.29859205]
[1771001434840,1.28222568,84.559,84.52,10.3947644]
[1771001434841,1.28222568,84.549,84.527,33.8]
[1771001435041,10.3947644,84.55,84.527,33.8]
[1771001435558,11.82746099,84.549,84.527,33.8]
[1771001435764,10.3947644,84.54,84.509,1.29859205]
[1771001435962,10.3947644,84.53,84.507,40.84]
[1771001436634,10.3947644,84.52,84.495,1.29859205]
[1771001436831,10.3947644,84.52,84.496,40.84]
[1771001437069,1.34594119,84.527,84.496,42.15181708]
[1771001437239,10.3947644,84.52,84.496,42.15181708]
[1771001437560,10.3947644,84.53,84.498,1.31181708]
[1771001437739,10.3947644,84.54,84.501,1.31181708]
[1771001438055,29.56865249,84.549,84.501,1.31181708]
[1771001438056,1.34594119,84.529,84.501,1.31181708]
[1771001438641,10.3947644,84.52,84.496,40.84]
[1771001439043,1.34594119,84.529,84.497,1.31181708]
[1771001439260,10.3947644,84.55,84.511,1.31181708]
[1771001439438,10.3947644,84.55,84.521,1.31181708]
[1771001439638,10.3947644,84.55,84.523,1.31181708]
[1771001440357,10.3947644,84.53,84.519,40.88]
[1771001440760,1.34594119,84.529,84.508,40.88]
[1771001441068,1.34594119,84.529,84.499,11.83435999]
[1771001441069,1.34594119,84.519,84.488,1.31181708]
[1771001441264,1.34594119,84.519,84.489,40.9]
[1771001441455,1.34594119,84.519,84.49,40.9]
[1771001441861,10.3947644,84.52,84.492,1.31181708]
[1771001442160,11.74070559,84.52,84.492,1.31181708]
[1771001443053,10.3947644,84.52,84.492,1.31181708]
[1771001443856,10.3947644,84.52,84.494,1.31181708]
[1771001444252,1.34594119,84.538,84.501,1.31181708]
[1771001444460,11.82746099,84.549,84.503,1.31181708]
[1771001444461,10.3947644,84.54,84.503,1.31181708]
[1771001444765,1.34594119,84.556,84.521,1.31181708]
[1771001444964,1.34594119,84.556,84.523,1.31181708]
[1771001445173,1.34594119,84.565,84.531,1.31181708]
[1771001445464,10.3947644,84.56,84.531,1.31181708]
[1771001445969,10.3947644,84.56,84.532,11.82983958]
[1771001446345,10.3947644,84.56,84.532,13.14165666]
[1771001446567,10.3947644,84.56,84.533,1.31181708]
[1771001447861,29.5562383,84.585,84.532,11.82983958]
[1771001447862,1.34594119,84.574,84.541,1.31181708]
[1771001448063,10.3947644,84.57,84.542,13.14025738]
[1771001448247,13.17060507,84.569,84.542,13.14025738]
[1771001451072,10.3947644,84.58,84.545,1.31181708]
[1771001451364,11.82187559,84.589,84.551,1.31181708]
[1771001451576,10.5947644,84.59,84.561,1.31181708]
[1771001451866,10.5947644,84.59,84.56,10.3947644]
[1771001451867,0.2,84.59,84.563,1.31181708]
[1771001452046,0.2,84.59,84.565,1.31181708]
[1771001452248,1.34594119,84.612,84.57,10.3947644]
[1771001452562,10.3947644,84.6,84.572,1.31181708]
[1771001453148,10.3947644,84.6,84.56,10.3947644]
[1771001453149,1.34594119,84.587,84.56,11.82589838]
[1771001453445,10.3947644,84.58,84.561,41.0]
[1771001453649,10.3947644,84.6,84.571,1.31181708]
[1771001453868,10.3947644,84.6,84.573,1.31181708]
[1771001454049,11.82047069,84.599,84.574,41.0]
[1771001454257,1.34594119,84.599,84.575,41.0]
[1771001454450,1.34594119,84.599,84.565,41.3882812]
[1771001454651,10.3947644,84.59,84.566,41.0]
[1771001454878,1.34594119,84.599,84.567,1.31181708]
[1771001455188,10.3947644,84.61,84.571,1.31181708]
[1771001455866,10.3947644,84.6,84.573,1.31181708]
[1771001456769,10.3947644,84.6,84.574,52.82396481]
[1771001457165,10.3947644,84.6,84.574,11.82396481]
[1771001457368,22.21510978,84.6,84.575,41.0]
[1771001457567,22.21510978,84.6,84.574,11.82396481]
[1771001457755,22.21510978,84.6,84.576,41.0]
[1771001457960,10.3947644,84.6,84.574,11.82396481]
[1771001458257,10.3947644,84.6,84.577,41.0]
[1771001459653,10.3947644,84.6,84.579,1.31181708]
[1771001459849,11.81959698,84.606,84.579,1.31181708]
[1771001460047,22.21373765,84.61,84.579,1.31181708]
[1771001460251,29.80426637,84.759,84.581,1.31181708]
[1771001460252,10.5947644,84.62,84.581,1.31181708]
[1771001460469,0.2,84.62,84.591,1.31181708]
[1771001460670,0.2,84.62,84.59,10.3947644]
[1771001460671,10.3947644,84.62,84.592,1.28744188]
[1771001460860,10.3947644,84.62,84.593,1.28744188]
[1771001461178,10.3947644,84.62,84.594,11.82116935]
[1771001461382,10.3947644,84.62,84.595,41.02]
[1771001461679,22.21242342,84.62,84.595,42.30744188]
[1771001461869,10.3947644,84.61,84.591,41.02]
[1771001462053,1.3996674,84.599,84.561,1.28744188]
[1771001462247,41.36150208,84.62,84.562,41.04]
[1771001462248,10.3947644,84.58,84.562,41.04]
[1771001462953,10.3947644,84.58,84.562,42.32744188]
[1771001463152,10.3947644,84.58,84.562,41.04]
[1771001463352,10.3947644,84.58,84.541,41.40003074]
[1771001463353,10.3947644,84.58,84.563,41.04]
[1771001463852,10.3947644,84.57,84.55,11.8273032]
[1771001464165,10.3947644,84.57,84.547,1.28744188]
[1771001464350,10.3947644,84.57,84.548,41.04]
[1771001464876,10.3947644,84.56,84.548,41.04]
[1771001465347,11.82606227,84.559,84.548,38.95558147]
[1771001465752,11.82606227,84.559,84.529,13.11768774]
[1771001466052,11.82606227,84.559,84.525,41.06]
[1771001466053,10.3947644,84.54,84.525,41.06]
[1771001466254,10.3947644,84.56,84.526,1.42639297]
[1771001467186,10.3947644,84.55,84.526,1.42639297]
[1771001467493,10.3947644,84.55,84.525,41.06]
[1771001467494,10.3947644,84.56,84.528,1.42639297]
[1771001467711,10.3947644,84.56,84.531,1.42639297]
[1771001467986,10.3947644,84.56,84.511,4.61729252]
[1771001467987,10.3947644,84.55,84.532,41.1]
[1771001468281,10.3947644,84.55,84.533,41.1]
[1771001468473,10.3947644,84.55,84.534,41.1]
[1771001468681,10.3947644,84.54,84.534,41.1]
[1771001469077,10.3947644,84.55,84.534,41.1]
[1771001469461,10.3947644,84.54,84.534,41.1]
[1771001469880,10.3947644,84.55,84.534,41.1]
[1771001470076,10.3947644,84.54,84.534,41.1]
[1771001471175,11.823322,84.579,84.536,1.42639297]
[1771001471366,22.21941572,84.57,84.538,1.42639297]
[1771001471568,10.3947644,84.56,84.538,1.42639297]
[1771001472066,10.3947644,84.55,84.539,41.12]
[1771001472273,10.3947644,84.55,84.54,41.12]
[1771001472467,10.3947644,84.55,84.52,1.42639297]
[1771001472782,10.3947644,84.55,84.522,1.42639297]
[1771001472969,10.3947644,84.53,84.513,1.42639297]
[1771001473174,10.3947644,84.53,84.514,41.12]
[1771001473485,10.3947644,84.52,84.482,1.42639297]
[1771001473691,10.3947644,84.57,84.511,1.42639297]
[1771001473876,310.0,84.594,84.483,6.54453196]
[1771001473877,10.3947644,84.56,84.531,1.42639297]
[1771001474075,10.3947644,84.55,84.532,41.14]
[1771001474267,10.3947644,84.56,84.533,42.54639297]
[1771001474472,10.3947644,84.56,84.534,1.42639297]
[1771001474679,0.02854558,84.569,84.534,1.42639297]
[1771001474866,10.37834255,84.56,84.534,1.42639297]
[1771001475490,10.37834255,84.56,84.536,1.42639297]
[1771001476489,10.37834255,84.55,84.537,41.14]
[1771001476697,11.82606227,84.559,84.538,41.14]
[1771001477477,10.37834255,84.55,84.527,1.42639297]
[1771001477684,10.37834255,84.55,84.528,41.14]
[1771001478376,10.37834255,84.55,84.528,52.97039939]
[1771001478580,0.0387767,84.573,84.529,1.42639297]
[1771001478777,10.37834255,84.61,84.561,1.42639297]
[1771001478976,10.37834255,84.6,84.571,1.42639297]
[1771001479193,10.37834255,84.6,84.573,1.42639297]
[1771001479381,22.20007228,84.59,84.57,41.18]
[1771001479696,47.26143837,84.636,84.57,41.18]
[1771001479697,10.37834255,84.6,84.572,1.42639297]
[1771001480198,11.8179562,84.617,84.572,1.42639297]
[1771001480378,10.37834255,84.61,84.574,1.42639297]
[1771001480694,11.8179562,84.617,84.574,1.42639297]
[1771001480695,10.37834255,84.6,84.574,1.42639297]
[1771001480897,10.37834255,84.59,84.567,1.42639297]
[1771001481193,10.37834255,84.59,84.575,41.22]
[1771001481395,22.20013129,84.59,84.557,1.42639297]
[1771001481699,22.20013129,84.59,84.558,42.64639297]
[1771001481891,22.20013129,84.59,84.559,1.42639297]
[1771001482295,10.37834255,84.59,84.561,1.42639297]
[1771001483589,10.37834255,84.59,84.565,1.42639297]
[1771001484377,10.37834255,84.59,84.556,1.42639297]
[1771001484583,10.37834255,84.58,84.557,41.24]
[1771001484784,10.37834255,84.59,84.557,42.66639297]
[1771001484995,11.82186809,84.589,84.557,42.66639297]
[1771001485297,10.37834255,84.59,84.557,42.66639297]
[1771001485298,10.37834255,84.59,84.561,1.42639297]
[1771001485499,10.37834255,84.59,84.563,1.42639297]
[1771001486306,10.37834255,84.59,84.565,1.42639297]
[1771001486683,10.37834255,84.6,84.565,1.42639297]
[1771001486887,10.37834255,84.61,84.571,1.42639297]
[1771001487694,11.81907362,84.609,84.572,11.82424443]
[1771001487902,10.37834255,84.6,84.573,1.42639297]
[1771001488081,10.37834255,84.59,84.573,1.42639297]
[1771001488281,10.37834255,84.6,84.574,41.28]
[1771001488504,10.37834255,84.61,84.575,1.42639297]
[1771001489113,10.37834255,84.63,84.591,1.42639297]
[1771001489403,10.37834255,84.61,84.591,1.42639297]
[1771001489583,10.37834255,84.62,84.591,1.42639297]
[1771001489779,10.37834255,84.62,84.58,10.37834255]
[1771001489780,10.37834255,84.62,84.592,11.82144883]
[1771001489985,43.70518877,84.648,84.593,1.42639297]
[1771001490183,43.70518877,84.648,84.592,41.37507092]
[1771001490184,10.37834255,84.64,84.601,1.42639297]
[1771001490582,10.37834255,84.64,84.603,1.42639297]
[1771001491004,10.37834255,84.63,84.603,1.42639297]
[1771001491413,10.37834255,84.64,84.604,41.3]
[1771001491591,0.5701035,84.644,84.604,41.3]
[1771001491909,10.37834255,84.63,84.605,11.8196324]
[1771001492108,10.37834255,84.64,84.605,11.8196324]
[1771001492421,10.37834255,84.64,84.605,41.36871342]
[1771001493203,10.37834255,84.63,84.605,41.36871342]
[1771001493511,10.37834255,84.63,84.606,1.32395973]
[1771001493710,10.37834255,84.64,84.606,1.32395973]
[1771001494206,10.37834255,84.64,84.608,1.32395973]
[1771001494590,11.81372241,84.648,84.607,11.819353]
[1771001494591,10.37834255,84.63,84.607,11.819353]
[1771001494794,10.37834255,84.63,84.599,1.32395973]
[1771001494993,10.37834255,84.62,84.598,1.32395973]
[1771001495419,10.37834255,84.63,84.599,41.34]
[1771001495593,10.37834255,84.63,84.6,1.32395973]
[1771001496097,10.37834255,84.64,84.604,1.32395973]
[1771001496515,10.57834255,84.65,84.611,1.32395973]
[1771001496718,11.81348864,84.649,84.611,1.32395973]
[1771001497219,10.57834255,84.65,84.61,10.37834255]
[1771001497220,10.57834255,84.65,84.612,41.36]
[1771001497402,10.57834255,84.65,84.613,1.43140691]
[1771001498011,10.57834255,84.65,84.62,10.37834255]
[1771001498315,10.37834255,84.64,84.621,1.43140691]
[1771001498716,10.57834255,84.65,84.621,1.43140691]
[1771001498922,10.57834255,84.65,84.62,10.37834255]
[1771001498923,0.2,84.65,84.623,1.43140691]
[1771001499721,0.2,84.65,84.631,1.43140691]
[1771001499925,0.2,84.65,84.633,1.43140691]
[1771001500111,0.2,84.65,84.634,11.81558239]
[1771001500309,0.2,84.65,84.636,1.43140691]
[1771001501704,10.37834255,84.67,84.636,1.43140691]
[1771001501905,11.80946897,84.678,84.641,1.43140691]
[1771001502116,10.37834255,84.67,84.641,1.43140691]
[1771001502318,10.47834255,84.68,84.651,1.43140691]
[1771001502513,0.1,84.68,84.653,1.43140691]
[1771001502734,0.1,84.68,84.655,1.43140691]
[1771001502918,10.47834255,84.7,84.669,1.43140691]
[1771001503124,0.59421156,84.679,84.654,41.42]
[1771001503318,10.37834255,84.67,84.643,1.43140691]
[1771001503520,0.59421156,84.679,84.643,1.43140691]
[1771001503727,10.37834255,84.67,84.643,1.43140691]
[1771001504027,10.37834255,84.66,84.643,1.43140691]
[1771001504626,10.37834255,84.66,84.644,11.81418647]
[1771001505230,10.37834255,84.66,84.635,1.43140691]
[1771001506527,10.37834255,84.66,84.62,81.3618506]
[1771001506528,10.37834255,84.66,84.626,1.43140691]
[1771001506712,10.37834255,84.64,84.627,1.43140691]
[1771001506908,10.37834255,84.65,84.627,1.43140691]
[1771001510126,0.60367247,84.639,84.602,1.43140691]
[1771001510312,10.37834255,84.62,84.603,11.81991182]
[1771001511025,10.37834255,84.62,84.603,1.43140691]
[1771001511330,10.37834255,84.62,84.596,1.43140691]
[1771001511511,43.4,84.636,84.596,1.43140691]
[1771001511512,10.37834255,84.61,84.596,1.43140691]
[1771001512525,10.37834255,84.61,84.589,11.82180765]
[1771001512725,10.37834255,84.62,84.59,1.43140691]
[1771001513030,10.37834255,84.61,84.59,1.43140691]
[1771001513411,10.37834255,84.6,84.586,1.43140691]
[1771001513612,0.60717164,84.599,84.569,1.43140691]
[1771001513812,10.37834255,84.59,84.569,1.43140691]
[1771001514230,43.4,84.61,84.557,41.5]
[1771001514231,10.37834255,84.6,84.571,1.43140691]
[1771001514536,10.37834255,84.59,84.571,1.43140691]
[1771001515029,10.37834255,84.6,84.571,1.43140691]
[1771001516314,10.37834255,84.6,84.573,1.43140691]
[1771001516717,10.37834255,84.61,84.573,1.43140691]
[1771001517122,10.37834255,84.6,84.573,1.43140691]
[1771001518331,10.37834255,84.59,84.575,1.43140691]
[1771001518722,10.37834255,84.6,84.575,1.43140691]
[1771001519325,10.37834255,84.62,84.575,1.43140691]
[1771001519516,10.37834255,84.63,84.581,1.43140691]
[1771001519822,10.37834255,84.62,84.583,1.43140691]
[1771001520022,43.38,84.644,84.583,1.43140691]
[1771001520023,10.37834255,84.61,84.583,1.43140691]
[1771001520324,10.37834255,84.59,84.565,41.6]
[1771001520528,10.37834255,84.58,84.565,41.6]
[1771001520733,10.37834255,84.59,84.565,41.6]
[1771001521034,10.37834255,84.58,84.551,41.39513428]
[1771001521338,10.37834255,84.56,84.551,11.82718122]
[1771001521545,10.37834255,84.56,84.538,41.62]
[1771001521837,1.3622648,84.576,84.528,41.40639787]
[1771001522050,10.37834255,84.54,84.525,11.83081928]
[1771001522226,10.37834255,84.54,84.526,1.36435918]
[1771001522621,1.3622648,84.539,84.52,11.83138139]
[1771001522821,10.37834255,84.54,84.51,0.1]
[1771001522822,1.3622648,84.529,84.51,0.1]
[1771001523041,10.37834255,84.52,84.495,1.36435918]
[1771001523333,10.37834255,84.51,84.495,1.36435918]
[1771001523532,10.37834255,84.51,84.491,11.83558012]
[1771001523721,10.37834255,84.5,84.491,11.83558012]
[1771001523930,10.37834255,84.51,84.491,11.83558012]
[1771001524238,10.37834255,84.5,84.471,11.8383824]
[1771001524446,10.37834255,84.49,84.471,11.8383824]
[1771001524642,10.37834255,84.49,84.46,0.1]
[1771001524643,10.37834255,84.48,84.461,11.83973074]
[1771001524940,10.37834255,84.47,84.46,0.1]
[1771001525322,1.3622648,84.485,84.461,11.83978404]
[1771001525523,43.32,84.505,84.462,1.36435918]
[1771001525524,10.37834255,84.48,84.462,1.36435918]
[1771001526431,10.37834255,84.49,84.464,1.36435918]
[1771001526623,10.37834255,84.5,84.464,1.36435918]
[1771001527141,10.37834255,84.49,84.465,41.68]
[1771001527438,10.37834255,84.49,84.463,41.4382629]
[1771001527439,10.37834255,84.51,84.467,1.36435918]
[1771001527642,10.37834255,84.5,84.467,1.36435918]
[1771001527850,10.37834255,84.48,84.467,1.36435918]
[1771001528343,10.37834255,84.48,84.46,0.1]
[1771001528344,10.37834255,84.5,84.468,11.83880286]
[1771001528551,10.37834255,84.5,84.469,1.36435918]
[1771001529552,10.37834255,84.51,84.47,1.36435918]
[1771001529734,10.37834255,84.5,84.47,1.36435918]
[1771001530446,10.37834255,84.51,84.473,1.36435918]
[1771001530660,10.37834255,84.51,84.471,41.4343384]
[1771001530661,1.3622648,84.549,84.49,10.37834255]
[1771001530946,1.3622648,84.549,84.478,5.36086188]
[1771001530947,10.37834255,84.52,84.492,1.36435918]
[1771001531722,10.37834255,84.5,84.491,41.78]
[1771001531926,10.37834255,84.51,84.491,41.78]
[1771001532124,10.37834255,84.51,84.49,1.36435918]
[1771001532329,10.37834255,84.5,84.471,42.79869758]
[1771001532537,10.37834255,84.5,84.477,41.78]
[1771001533042,10.37834255,84.5,84.477,43.14435918]
[1771001534145,10.37834255,84.49,84.477,41.78]
[1771001534944,10.39483306,84.49,84.477,41.78]
[1771001535531,11.75709786,84.49,84.46,0.1]
[1771001535748,10.39483306,84.48,84.461,41.88]
[1771001536249,10.39483306,84.48,84.461,43.29933201]
[1771001536456,11.83410464,84.502,84.464,1.41933201]
[1771001536633,10.39483306,84.49,84.464,1.41933201]
[1771001536831,10.39483306,84.49,84.466,1.41933201]
[1771001537226,10.39483306,84.49,84.468,1.41933201]
[1771001537634,10.39483306,84.49,84.47,1.41933201]
[1771001538023,10.39483306,84.5,84.47,1.41933201]
[1771001538427,10.39483306,84.49,84.47,1.41933201]
[1771001538841,10.39483306,84.49,84.472,1.41933201]
[1771001540256,10.39483306,84.48,84.469,41.9]
[1771001540630,10.39483306,84.48,84.46,0.1]
[1771001540851,10.39483306,84.48,84.405,47.39051042]
[1771001540852,10.39483306,84.47,84.434,29.60860507]
[1771001541031,10.39483306,84.46,84.441,41.96]
[1771001541237,10.39483306,84.48,84.442,1.41933201]
[1771001541566,43.12,84.511,84.444,1.41933201]
[1771001541567,10.39483306,84.47,84.444,1.41933201]
[1771001541763,10.39483306,84.46,84.445,41.98]
[1771001541939,10.39483306,84.46,84.442,41.98]
[1771001542437,10.39483306,84.46,84.44,0.1]
[1771001542638,242.56049221,84.515,84.371,47.40956674]
[1771001542639,10.39483306,84.44,84.413,42.0]
[1771001542847,10.39483306,84.44,84.417,1.41933201]
[1771001543358,10.39483306,84.45,84.417,1.41933201]
[1771001544149,10.39483306,84.46,84.431,1.41933201]
[1771001544456,10.39483306,84.47,84.433,1.41933201]
[1771001544759,10.39483306,84.47,84.441,1.41933201]
[1771001544960,10.39483306,84.46,84.442,11.84244807]
[1771001546763,10.39483306,84.45,84.432,42.0]
[1771001547060,10.39483306,84.45,84.432,42.04]
[1771001547264,10.39483306,84.44,84.401,13.26753286]
[1771001547463,10.39483306,84.43,84.403,1.41933201]
[1771001547667,10.39483306,84.44,84.403,1.41933201]
[1771001547967,10.39483306,84.43,84.403,1.41933201]
[1771001548145,10.39483306,84.45,84.411,1.41933201]
[1771001548463,10.39483306,84.44,84.411,1.41933201]
[1771001549063,10.39483306,84.44,84.412,41.46329905]
[1771001549262,10.39483306,84.44,84.413,1.41933201]
[1771001550167,10.39483306,84.45,84.413,1.41933201]
[1771001550663,10.39483306,84.46,84.421,1.41933201]
[1771001550868,10.39483306,84.46,84.42,10.39483306]
[1771001550869,10.39483306,84.46,84.423,1.41933201]
[1771001551171,10.39483306,84.46,84.425,1.41933201]
[1771001551467,10.39483306,84.45,84.425,1.41933201]
[1771001552570,10.39483306,84.45,84.427,1.41933201]
[1771001553658,10.39483306,84.46,84.427,1.41933201]
[1771001554169,10.39483306,84.45,84.427,1.41933201]
[1771001554351,10.39483306,84.46,84.427,1.41933201]
[1771001554553,10.39483306,84.45,84.428,13.26374381]
[1771001554767,10.39483306,84.45,84.429,1.41933201]
[1771001554965,10.39483306,84.48,84.428,11.8444118]
[1771001554966,10.39483306,84.48,84.44,10.39483306]
[1771001555270,10.39483306,84.48,84.442,1.41933201]
[1771001555471,10.39483306,84.48,84.444,1.41933201]
[1771001556169,10.39483306,84.49,84.451,1.41933201]
[1771001556651,10.39483306,84.49,84.461,1.41933201]
[1771001556856,10.39483306,84.49,84.463,1.41933201]
[1771001557455,10.39483306,84.49,84.465,1.41933201]
[1771001557870,10.39483306,84.5,84.467,1.41933201]
[1771001558067,10.39483306,84.49,84.467,1.41933201]
[1771001558777,29.57704821,84.525,84.467,1.41933201]
[1771001558954,10.39483306,84.5,84.467,1.41933201]
[1771001559271,10.39483306,84.5,84.468,42.24]
[1771001559452,10.39483306,84.5,84.469,1.41933201]
[1771001559976,10.39483306,84.5,84.471,1.41933201]
[1771001560166,10.39483306,84.5,84.473,1.41933201]
[1771001561965,10.39483306,84.5,84.474,11.83796197]
[1771001562369,10.39483306,84.5,84.475,42.28]
[1771001563078,10.39483306,84.5,84.476,42.3]
[1771001563369,10.39483306,84.5,84.477,42.3]
[1771001563875,10.39483306,84.5,84.478,13.25673346]
[1771001564468,10.39483306,84.49,84.479,1.41933201]
[1771001564874,10.39483306,84.5,84.479,1.41933201]
[1771001565074,10.39483306,84.49,84.477,42.3]
[1771001565371,10.39483306,84.49,84.473,11.83799244]
[1771001566482,11.83452912,84.499,84.474,1.41933201]
[1771001566483,11.83445957,84.499,84.474,1.41933201]
[1771001567075,10.39483306,84.49,84.471,42.34]
[1771001568271,11.83445957,84.499,84.472,11.83824225]
[1771001568454,11.83445957,84.499,84.472,13.25757426]
[1771001568885,10.39483306,84.48,84.471,42.34]
[1771001569081,11.83445957,84.499,84.471,42.34]
[1771001569284,10.39483306,84.48,84.46,11.8398417]
[1771001569586,10.39483306,84.49,84.461,1.41933201]
[1771001569755,10.39483306,84.48,84.459,42.4]
[1771001570154,10.39483306,84.48,84.459,54.23994133]
[1771001570362,10.39483306,84.49,84.46,1.41933201]
[1771001570879,10.39483306,84.48,84.46,1.41933201]
[1771001571376,29.58614894,84.499,84.46,1.41933201]
[1771001571377,10.39483306,84.49,84.46,1.41933201]
[1771001571874,10.39483306,84.5,84.461,1.41933201]
[1771001572059,10.39483306,84.5,84.462,1.41933201]
[1771001572262,10.39483306,84.48,84.462,13.25892594]
[1771001572462,41.41227696,84.516,84.463,1.41933201]
[1771001572786,10.39483306,84.5,84.463,1.41933201]
[1771001572980,3.88041165,84.5,84.465,1.41933201]
[1771001573182,3.88041165,84.49,84.465,1.41933201]
[1771001573383,3.88041165,84.48,84.464,42.44]
[1771001573881,3.88041165,84.49,84.464,43.85933201]
[1771001574064,3.88041165,84.48,84.464,42.44]
[1771001574263,3.88041165,84.48,84.464,42.46]
[1771001574687,11.83613956,84.488,84.464,43.87933201]
[1771001575183,3.88041165,84.5,84.465,1.41933201]
[1771001575389,15.71482191,84.5,84.467,1.41933201]
[1771001575566,15.71482191,84.5,84.469,1.41933201]
[1771001575964,3.88041165,84.48,84.468,42.48]
[1771001576162,3.88041165,84.49,84.469,1.41933201]
[1771001576576,3.88041165,84.48,84.468,42.48]
[1771001577481,3.88041165,84.48,84.455,11.84049359]
[1771001577680,3.88041165,84.48,84.456,42.48]
[1771001577865,3.88041165,84.48,84.457,1.41933201]
[1771001578486,100.57445445,84.515,84.459,1.41933201]
[1771001578685,3.88041165,84.48,84.459,1.41933201]
[1771001579189,3.88041165,84.47,84.459,42.5]
[1771001579765,3.88041165,84.47,84.451,42.5]
[1771001580388,3.88041165,84.46,84.431,11.84399095]
[1771001580687,3.88041165,84.46,84.375,61.9]
[1771001580688,11.8400644,84.459,84.415,1.41933201]
[1771001580986,11.8400644,84.459,84.417,1.41933201]
[1771001580987,10.40568941,84.45,84.417,1.41933201]
[1771001581189,10.40568941,84.43,84.417,1.41933201]
[1771001581393,10.40568941,84.44,84.419,1.41933201]
[1771001581583,11.8400644,84.459,84.419,1.41933201]
[1771001581783,10.40568941,84.45,84.421,1.41933201]
[1771001581981,10.40568941,84.44,84.421,1.41933201]
[1771001582180,10.40568941,84.43,84.421,1.41933201]
[1771001582701,10.40568941,84.44,84.421,1.41933201]
[1771001583379,10.40568941,84.45,84.422,1.41933201]
[1771001583580,4.61729252,84.475,84.413,1.41933201]
[1771001583581,10.40568941,84.43,84.413,1.41933201]
[1771001583781,10.40568941,84.43,84.414,1.41933201]
[1771001584279,10.40568941,84.44,84.414,1.41933201]
[1771001584597,10.40568941,84.43,84.415,11.84623585]
[1771001584791,10.40568941,84.43,84.416,1.41933201]
[1771001584997,10.40568941,84.43,84.409,42.52]
[1771001585192,10.40568941,84.42,84.397,13.2680944]
[1771001585378,10.40568941,84.42,84.398,1.41933201]
[1771001585573,10.40568941,84.43,84.398,1.41933201]
[1771001585889,10.40568941,84.43,84.4,1.41933201]
[1771001586084,10.40568941,84.44,84.401,1.41933201]
[1771001586272,10.40568941,84.44,84.41,10.40568941]
[1771001586476,10.40568941,84.46,84.421,1.41933201]
[1771001586699,10.40568941,84.46,84.402,5.36086188]
[1771001586700,10.40568941,84.46,84.43,10.40568941]
[1771001586889,10.40568941,84.46,84.432,1.41933201]
[1771001588593,10.40568941,84.47,84.442,11.84244807]
[1771001588787,10.40568941,84.47,84.443,0.94738411]
[1771001588992,10.40568941,84.46,84.443,0.94738411]
[1771001589188,10.40568941,84.48,84.443,0.94738411]
[1771001589579,10.40568941,84.47,84.444,42.66]
[1771001589780,10.40568941,84.47,84.445,0.94738411]
[1771001589998,0.53977971,84.48,84.445,0.94738411]
[1771001589999,10.94546912,84.48,84.445,0.94738411]
[1771001590329,10.40568941,84.48,84.445,0.94738411]
[1771001590995,10.40568941,84.49,84.451,0.94738411]
[1771001591776,10.40568941,84.49,84.461,0.94738411]
[1771001592179,10.40568941,84.49,84.446,41.44660492]
[1771001592180,10.40568941,84.5,84.471,0.94738411]
[1771001592380,10.40568941,84.48,84.472,39.82283579]
[1771001592676,10.40568941,84.48,84.458,42.7]
[1771001592876,10.40568941,84.48,84.459,11.8400644]
[1771001593095,10.40568941,84.48,84.459,12.78744851]
[1771001593301,10.40568941,84.48,84.455,11.8405746]
[1771001593599,10.40568941,84.48,84.456,42.72]